[Event "*** Titled Tuesday Blitz"]
[Site "Chess.com"]
[Date "2020.01.07"]
[Round "8"]
[White "TheBigBoss04"]
[Black "Dynamikus"]
[Result "0-1"]
[WhiteElo "2717"]
[BlackElo "2674"]
[TimeControl "180+2"]
[EndTime "14:55:56 PST"]
[Termination "Dynamikus won by checkmate"]

1. b3 {[%clk 0:03:01.9]} 1... Nf6 {[%clk 0:02:59.9]} 2. Bb2 {[%clk 0:03:03.8]}
2... g6 {[%clk 0:03:01.8]} 3. c4 {[%clk 0:03:03.5]} 3... d5 {[%clk 0:03:01.1]}
4. cxd5 {[%clk 0:03:02.7]} 4... Qxd5 {[%clk 0:03:01.7]} 5. Nc3 {[%clk
0:03:04.2]} 5... Qd8 {[%clk 0:03:00.6]} 6. Nf3 {[%clk 0:03:05.6]} 6... Bg7
{[%clk 0:03:01.8]} 7. g3 {[%clk 0:03:06.9]} 7... O-O {[%clk 0:03:03]} 8. Bg2
{[%clk 0:03:08.6]} 8... c5 {[%clk 0:03:04.4]} 9. O-O {[%clk 0:03:09.8]} 9... Nc6
{[%clk 0:03:05.7]} 10. Rc1 {[%clk 0:03:08.2]} 10... Bd7 {[%clk 0:03:02.4]} 11.
d4 {[%clk 0:03:08]} 11... cxd4 {[%clk 0:02:58.4]} 12. Nxd4 {[%clk 0:03:09.6]}
12... Rc8 {[%clk 0:02:59.3]} 13. Nf3 {[%clk 0:02:33.2]} 13... Bf5 {[%clk
0:02:44.4]} 14. Nh4 {[%clk 0:02:32.7]} 14... Bd7 {[%clk 0:02:31.2]} 15. Qd2
{[%clk 0:02:28.4]} 15... Qa5 {[%clk 0:02:25.7]} 16. Rfd1 {[%clk 0:02:29.4]}
16... Rfd8 {[%clk 0:02:23.4]} 17. Qe1 {[%clk 0:02:27.4]} 17... Be8 {[%clk
0:02:12.2]} 18. Rxd8 {[%clk 0:02:27]} 18... Rxd8 {[%clk 0:02:12.6]} 19. a3
{[%clk 0:02:24]} 19... Nd4 {[%clk 0:02:08]} 20. b4 {[%clk 0:02:22.2]} 20... Qh5
{[%clk 0:02:06.6]} 21. Nf3 {[%clk 0:02:11.2]} 21... Bc6 {[%clk 0:01:55.2]} 22.
Nxd4 {[%clk 0:01:54.4]} 22... Bxg2 {[%clk 0:01:56.1]} 23. Kxg2 {[%clk
0:01:56.1]} 23... Rxd4 {[%clk 0:01:56.1]} 24. Rd1 {[%clk 0:01:57.1]} 24... Rd7
{[%clk 0:01:21.3]} 25. Rxd7 {[%clk 0:01:43.2]} 25... Nxd7 {[%clk 0:01:23.2]} 26.
Qd2 {[%clk 0:01:43.5]} 26... Qf5 {[%clk 0:01:14.8]} 27. Nd5 {[%clk 0:01:43.2]}
27... Qe6 {[%clk 0:01:05.6]} 28. Bxg7 {[%clk 0:01:38.6]} 28... Kxg7 {[%clk
0:01:07.5]} 29. Nf4 {[%clk 0:01:15.8]} 29... Qc6+ {[%clk 0:01:04]} 30. f3 {[%clk
0:01:17.2]} 30... Nb6 {[%clk 0:00:58.7]} 31. Qd4+ {[%clk 0:01:14]} 31... f6
{[%clk 0:00:54.8]} 32. Nd3 {[%clk 0:01:08.9]} 32... Kf7 {[%clk 0:00:51.3]} 33.
Nc5 {[%clk 0:01:06]} 33... Nc8 {[%clk 0:00:41.7]} 34. Qc4+ {[%clk 0:00:57]}
34... e6 {[%clk 0:00:42]} 35. Qh4 {[%clk 0:00:55.9]} 35... h5 {[%clk 0:00:35.7]}
36. Ne4 {[%clk 0:00:56.7]} 36... e5 {[%clk 0:00:35.7]} 37. b5 {[%clk 0:00:57.6]}
37... Qb6 {[%clk 0:00:29.4]} 38. g4 {[%clk 0:00:53.5]} 38... Ne7 {[%clk
0:00:22.3]} 39. gxh5 {[%clk 0:00:51.5]} 39... g5 {[%clk 0:00:21.4]} 40. Qg4
{[%clk 0:00:45]} 40... Qc7 {[%clk 0:00:15.5]} 41. h6 {[%clk 0:00:41.1]} 41...
Nd5 {[%clk 0:00:15.1]} 42. Qh5+ {[%clk 0:00:39]} 42... Ke7 {[%clk 0:00:16.4]}
43. h7 {[%clk 0:00:21.3]} 43... Nf4+ {[%clk 0:00:15.7]} 44. Kf2 {[%clk 0:00:23]}
44... Qc2 {[%clk 0:00:12.1]} 45. Nc3 {[%clk 0:00:16.4]} 45... Nxh5 {[%clk
0:00:11]} 46. h8=Q {[%clk 0:00:16.1]} 46... Nf4 {[%clk 0:00:12.3]} 47. Qg7+
{[%clk 0:00:15.5]} 47... Ke6 {[%clk 0:00:13.1]} 48. Qg8+ {[%clk 0:00:15.4]}
48... Ke7 {[%clk 0:00:14.3]} 49. Qc8 {[%clk 0:00:15.2]} 49... Qd2 {[%clk
0:00:11.4]} 50. Qxb7+ {[%clk 0:00:14.5]} 50... Kf8 {[%clk 0:00:12.6]} 51. Qc8+
{[%clk 0:00:14.8]} 51... Kg7 {[%clk 0:00:12.3]} 52. Qc7+ {[%clk 0:00:15.6]}
52... Kg6 {[%clk 0:00:12.4]} 53. Qc4 {[%clk 0:00:15.2]} 53... f5 {[%clk
0:00:11.4]} 54. a4 {[%clk 0:00:13.5]} 54... Nh3+ {[%clk 0:00:12.3]} 55. Kg3
{[%clk 0:00:10]} 55... Qe1+ {[%clk 0:00:12]} 56. Kxh3 {[%clk 0:00:07.6]} 56...
Qf1+ {[%clk 0:00:13.1]} 57. Kg3 {[%clk 0:00:07.7]} 57... f4+ {[%clk 0:00:14.5]}
58. Kg4 {[%clk 0:00:06.9]} 58... Qg2# {[%clk 0:00:16.4]} 0-1

[Event "*** Titled Tuesday Blitz"]
[Site "Chess.com"]
[Date "2020.01.07"]
[Round "8"]
[White "Perecke"]
[Black "ural58"]
[Result "1-0"]
[WhiteElo "2177"]
[BlackElo "2313"]
[TimeControl "180+2"]
[EndTime "14:55:58 PST"]
[Termination "Perecke won on time"]

1. e4 {[%clk 0:03:01.9]} 1... d5 {[%clk 0:03:00.3]} 2. exd5 {[%clk 0:03:02.9]}
2... Qxd5 {[%clk 0:02:59.8]} 3. Nc3 {[%clk 0:03:02.5]} 3... Qa5 {[%clk
0:03:01.1]} 4. Bc4 {[%clk 0:03:03.7]} 4... Nf6 {[%clk 0:03:02.4]} 5. d3 {[%clk
0:03:03.7]} 5... Bg4 {[%clk 0:03:01.5]} 6. f3 {[%clk 0:03:02.8]} 6... Be6 {[%clk
0:03:02.5]} 7. Ne2 {[%clk 0:03:03.5]} 7... Bxc4 {[%clk 0:03:02.3]} 8. dxc4
{[%clk 0:02:58.7]} 8... Nc6 {[%clk 0:03:03]} 9. Be3 {[%clk 0:02:46.7]} 9... Rd8
{[%clk 0:03:02.2]} 10. Qc1 {[%clk 0:02:47.2]} 10... e5 {[%clk 0:02:35.7]} 11.
O-O {[%clk 0:02:43.1]} 11... Bc5 {[%clk 0:02:11.5]} 12. Nb5 {[%clk 0:02:42]}
12... O-O {[%clk 0:01:44.6]} 13. Bxc5 {[%clk 0:02:40.2]} 13... Rfe8 {[%clk
0:01:36.2]} 14. c3 {[%clk 0:02:33.5]} 14... Rd7 {[%clk 0:01:20.7]} 15. b4 {[%clk
0:02:34.2]} 15... Qa4 {[%clk 0:01:20.4]} 16. Na3 {[%clk 0:02:16.9]} 16... a5
{[%clk 0:01:00.5]} 17. b5 {[%clk 0:02:15.9]} 17... Nd8 {[%clk 0:01:00.6]} 18.
Qc2 {[%clk 0:02:16.1]} 18... Qxc2 {[%clk 0:00:58.1]} 19. Nxc2 {[%clk 0:02:16.7]}
19... Rd2 {[%clk 0:00:59.7]} 20. Ned4 {[%clk 0:01:59.5]} 20... exd4 {[%clk
0:00:55.5]} 21. Nxd4 {[%clk 0:02:01.4]} 21... b6 {[%clk 0:00:42.8]} 22. Ba3
{[%clk 0:01:54.4]} 22... Ne6 {[%clk 0:00:35.1]} 23. Nxe6 {[%clk 0:01:51.3]}
23... Rxe6 {[%clk 0:00:36.1]} 24. Rad1 {[%clk 0:01:51.8]} 24... Ree2 {[%clk
0:00:36.7]} 25. Rxd2 {[%clk 0:01:35]} 25... Rxd2 {[%clk 0:00:38.6]} 26. Be7
{[%clk 0:01:23.2]} 26... Nd7 {[%clk 0:00:34.3]} 27. a3 {[%clk 0:01:18.8]} 27...
f6 {[%clk 0:00:33.8]} 28. Bd8 {[%clk 0:01:11.7]} 28... Kf7 {[%clk 0:00:26.1]}
29. Bxc7 {[%clk 0:01:11.6]} 29... Rd3 {[%clk 0:00:22.4]} 30. Rc1 {[%clk
0:01:08.4]} 30... g5 {[%clk 0:00:20.4]} 31. c5 {[%clk 0:01:03.7]} 31... Nxc5
{[%clk 0:00:14.7]} 32. Bxb6 {[%clk 0:01:04.5]} 32... Nb3 {[%clk 0:00:16.6]} 33.
Rc2 {[%clk 0:00:56.9]} 33... Na1 {[%clk 0:00:17.8]} 34. Ra2 {[%clk 0:00:54.1]}
34... Nb3 {[%clk 0:00:17.4]} 35. c4 {[%clk 0:00:48.4]} 35... Rc3 {[%clk
0:00:18]} 36. c5 {[%clk 0:00:34.1]} 36... Nxc5 {[%clk 0:00:18.6]} 37. Bxa5
{[%clk 0:00:35.3]} 37... Rc1+ {[%clk 0:00:16.6]} 38. Kf2 {[%clk 0:00:35.4]}
38... Rb1 {[%clk 0:00:17]} 39. b6 {[%clk 0:00:21]} 39... Rb5 {[%clk 0:00:13]}
40. Bb4 {[%clk 0:00:09.7]} 40... Nd3+ {[%clk 0:00:14.9]} 41. Ke3 {[%clk
0:00:10.6]} 41... Nxb4 {[%clk 0:00:16.8]} 42. axb4 {[%clk 0:00:12.1]} 42... Rxb4
{[%clk 0:00:18]} 43. Ra7+ {[%clk 0:00:11]} 43... Kg6 {[%clk 0:00:19.9]} 44. b7
{[%clk 0:00:11.9]} 44... h5 {[%clk 0:00:20.4]} 45. Kd3 {[%clk 0:00:12.3]} 45...
h4 {[%clk 0:00:20.5]} 46. Kc3 {[%clk 0:00:13]} 46... Rb1 {[%clk 0:00:21.4]} 47.
Kc4 {[%clk 0:00:11.7]} 47... h3 {[%clk 0:00:20.5]} 48. g4 {[%clk 0:00:07.2]}
48... Rb2 {[%clk 0:00:20.2]} 49. Kd5 {[%clk 0:00:07.3]} 49... Rb1 {[%clk
0:00:19.7]} 50. Kc6 {[%clk 0:00:07.9]} 50... f5 {[%clk 0:00:21.6]} 51. Ra5
{[%clk 0:00:06.6]} 51... fxg4 {[%clk 0:00:20.7]} 52. fxg4 {[%clk 0:00:08.5]}
52... Rc1+ {[%clk 0:00:11.1]} 53. Rc5 {[%clk 0:00:08.7]} 53... Rb1 {[%clk
0:00:11.4]} 54. Rb5 {[%clk 0:00:10.2]} 1-0

[Event "*** Titled Tuesday Blitz"]
[Site "Chess.com"]
[Date "2020.01.07"]
[Round "8"]
[White "Moon_stone123"]
[Black "kasparicy"]
[Result "0-1"]
[WhiteElo "2103"]
[BlackElo "2318"]
[TimeControl "180+2"]
[EndTime "14:56:02 PST"]
[Termination "kasparicy won on time"]

1. e4 {[%clk 0:03:01.9]} 1... c5 {[%clk 0:02:59.5]} 2. Nf3 {[%clk 0:03:01.3]}
2... d6 {[%clk 0:02:48.1]} 3. d4 {[%clk 0:03:02]} 3... cxd4 {[%clk 0:02:50]} 4.
Nxd4 {[%clk 0:03:03.5]} 4... Nf6 {[%clk 0:02:48.3]} 5. Nc3 {[%clk 0:03:04.8]}
5... a6 {[%clk 0:02:50.2]} 6. Bg5 {[%clk 0:03:05.4]} 6... e6 {[%clk 0:02:51]} 7.
f4 {[%clk 0:03:07]} 7... Nbd7 {[%clk 0:02:52.3]} 8. Qd3 {[%clk 0:03:08.2]} 8...
Be7 {[%clk 0:02:52.3]} 9. O-O-O {[%clk 0:03:09.1]} 9... Qc7 {[%clk 0:02:53.6]}
10. Be2 {[%clk 0:03:08.9]} 10... b5 {[%clk 0:02:54.7]} 11. Bf3 {[%clk
0:03:09.6]} 11... Bb7 {[%clk 0:02:55.9]} 12. a3 {[%clk 0:03:10.2]} 12... Rc8
{[%clk 0:02:56.9]} 13. Rhe1 {[%clk 0:03:08.3]} 13... Nc5 {[%clk 0:02:39.4]} 14.
Qe3 {[%clk 0:02:48.1]} 14... O-O {[%clk 0:02:32.4]} 15. e5 {[%clk 0:02:35.7]}
15... Ne8 {[%clk 0:02:27.4]} 16. Bxb7 {[%clk 0:02:25.1]} 16... Qxb7 {[%clk
0:02:11.9]} 17. Bxe7 {[%clk 0:02:10.6]} 17... Qxe7 {[%clk 0:02:01.6]} 18. f5
{[%clk 0:01:59.7]} 18... dxe5 {[%clk 0:01:47.3]} 19. Qxe5 {[%clk 0:02:01.6]}
19... f6 {[%clk 0:01:30.7]} 20. Qe2 {[%clk 0:01:54.4]} 20... e5 {[%clk
0:01:29.9]} 21. g4 {[%clk 0:01:42.6]} 21... Qb7 {[%clk 0:01:27.5]} 22. Ne6
{[%clk 0:01:27.6]} 22... Nxe6 {[%clk 0:01:23.6]} 23. fxe6 {[%clk 0:01:29.5]}
23... Qe7 {[%clk 0:01:25.1]} 24. Rd7 {[%clk 0:01:11.8]} 24... Qxe6 {[%clk
0:01:24.7]} 25. Red1 {[%clk 0:01:13.4]} 25... Rf7 {[%clk 0:01:12.6]} 26. Rd8
{[%clk 0:01:09.5]} 26... Rxd8 {[%clk 0:01:10.9]} 27. Rxd8 {[%clk 0:01:11.4]}
27... Rf8 {[%clk 0:01:05.7]} 28. Qd3 {[%clk 0:01:09.4]} 28... Qxg4 {[%clk
0:00:57.3]} 29. Qd5+ {[%clk 0:01:09.5]} 29... Kh8 {[%clk 0:00:57.4]} 30. Qf7
{[%clk 0:01:03.3]} 30... Qf4+ {[%clk 0:00:31]} 31. Kb1 {[%clk 0:00:57.8]} 31...
Qf1+ {[%clk 0:00:31.8]} 32. Ka2 {[%clk 0:00:56.2]} 32... Qc4+ {[%clk 0:00:32.9]}
33. Qxc4 {[%clk 0:00:57.7]} 33... bxc4 {[%clk 0:00:34.2]} 34. Nd5 {[%clk
0:00:25.4]} 34... f5 {[%clk 0:00:31.3]} 35. Nc7 {[%clk 0:00:21.2]} 35... f4
{[%clk 0:00:30]} 36. Ne6 {[%clk 0:00:13.7]} 36... Rg8 {[%clk 0:00:21.3]} 37. Ng5
{[%clk 0:00:15.1]} 37... h6 {[%clk 0:00:21.2]} 38. Nf7+ {[%clk 0:00:16.1]} 38...
Kh7 {[%clk 0:00:22.7]} 39. Nxe5 {[%clk 0:00:17.1]} 39... Nf6 {[%clk 0:00:21.2]}
40. Rd4 {[%clk 0:00:17]} 40... g5 {[%clk 0:00:22]} 41. Rxc4 {[%clk 0:00:15.9]}
41... Re8 {[%clk 0:00:21.5]} 42. Rc7+ {[%clk 0:00:15.9]} 42... Kg8 {[%clk
0:00:22.6]} 43. Nf3 {[%clk 0:00:13.6]} 43... g4 {[%clk 0:00:23.2]} 44. Nh4
{[%clk 0:00:13.9]} 44... f3 {[%clk 0:00:24]} 45. Rc6 {[%clk 0:00:14.1]} 45...
Kg7 {[%clk 0:00:23.7]} 46. Rc5 {[%clk 0:00:12.8]} 46... Re1 {[%clk 0:00:20.1]}
47. Rf5 {[%clk 0:00:12.7]} 47... Re2 {[%clk 0:00:21.3]} 48. c4 {[%clk 0:00:10]}
48... Rxh2 {[%clk 0:00:22.2]} 49. Nxf3 {[%clk 0:00:08.6]} 49... gxf3 {[%clk
0:00:22.6]} 50. Rxf3 {[%clk 0:00:10.5]} 50... Rc2 {[%clk 0:00:23.5]} 51. Kb3
{[%clk 0:00:11.3]} 51... Rc1 {[%clk 0:00:24.7]} 52. Kb4 {[%clk 0:00:11]} 52...
Nd7 {[%clk 0:00:22.1]} 53. Rd3 {[%clk 0:00:09.7]} 53... Ne5 {[%clk 0:00:21.1]}
54. Rd4 {[%clk 0:00:11.1]} 54... h5 {[%clk 0:00:22.3]} 55. Re4 {[%clk
0:00:10.5]} 55... Kf6 {[%clk 0:00:23.2]} 56. c5 {[%clk 0:00:11.3]} 56... Kf5
{[%clk 0:00:23.8]} 57. Rh4 {[%clk 0:00:11.6]} 57... Kg5 {[%clk 0:00:25]} 58. Re4
{[%clk 0:00:12.3]} 58... Nc6+ {[%clk 0:00:26.5]} 59. Ka4 {[%clk 0:00:11.3]}
59... h4 {[%clk 0:00:28.4]} 60. b4 {[%clk 0:00:10]} 60... h3 {[%clk 0:00:29.7]}
61. b5 {[%clk 0:00:09]} 61... axb5+ {[%clk 0:00:30.9]} 62. Kxb5 {[%clk
0:00:10.9]} 62... h2 {[%clk 0:00:32.1]} 0-1

[Event "*** Titled Tuesday Blitz"]
[Site "Chess.com"]
[Date "2020.01.07"]
[Round "8"]
[White "cukus"]
[Black "vlad_Sid"]
[Result "0-1"]
[WhiteElo "2447"]
[BlackElo "2586"]
[TimeControl "180+2"]
[EndTime "14:56:04 PST"]
[Termination "vlad_Sid won on time"]

1. e4 {[%clk 0:02:59.9]} 1... c6 {[%clk 0:02:53]} 2. d4 {[%clk 0:02:58.4]} 2...
d5 {[%clk 0:02:54.9]} 3. Nd2 {[%clk 0:02:59.4]} 3... dxe4 {[%clk 0:02:51]} 4.
Nxe4 {[%clk 0:02:59.7]} 4... Nf6 {[%clk 0:02:52.9]} 5. Nxf6+ {[%clk 0:02:59.9]}
5... exf6 {[%clk 0:02:54.8]} 6. c3 {[%clk 0:03:01]} 6... Bd6 {[%clk 0:02:51.4]}
7. Bd3 {[%clk 0:03:01.9]} 7... O-O {[%clk 0:02:53.3]} 8. Ne2 {[%clk 0:03:02.4]}
8... Re8 {[%clk 0:02:50.9]} 9. O-O {[%clk 0:03:02.8]} 9... Na6 {[%clk
0:02:50.9]} 10. Qc2 {[%clk 0:03:03.1]} 10... h5 {[%clk 0:02:50.9]} 11. Bf4
{[%clk 0:02:36.7]} 11... Nc7 {[%clk 0:02:50.9]} 12. Rae1 {[%clk 0:02:31.4]}
12... Nd5 {[%clk 0:02:30.7]} 13. Bxd6 {[%clk 0:02:29]} 13... Qxd6 {[%clk
0:02:32.6]} 14. Qd2 {[%clk 0:02:26.4]} 14... Be6 {[%clk 0:02:26.8]} 15. Bb1
{[%clk 0:02:26]} 15... f5 {[%clk 0:02:17.3]} 16. Ng3 {[%clk 0:02:17.8]} 16... g6
{[%clk 0:02:15.2]} 17. Qh6 {[%clk 0:02:11.1]} 17... Nf6 {[%clk 0:01:51.8]} 18.
h3 {[%clk 0:02:01.6]} 18... Bc4 {[%clk 0:01:36.7]} 19. Bxf5 {[%clk 0:01:42.3]}
19... Qf8 {[%clk 0:01:15.7]} 20. Qg5 {[%clk 0:01:36.9]} 20... Nh7 {[%clk
0:01:06.8]} 21. Qf4 {[%clk 0:01:35.8]} 21... Bxf1 {[%clk 0:01:05.8]} 22. Rxf1
{[%clk 0:01:33.4]} 22... gxf5 {[%clk 0:01:04.2]} 23. Qxf5 {[%clk 0:01:21.4]}
23... h4 {[%clk 0:00:57.4]} 24. Qg4+ {[%clk 0:01:16.6]} 24... Kh8 {[%clk
0:00:52]} 25. Qxh4 {[%clk 0:01:15.9]} 25... Qg7 {[%clk 0:00:49.8]} 26. Qf4
{[%clk 0:01:12.7]} 26... Re7 {[%clk 0:00:44.5]} 27. c4 {[%clk 0:00:50.8]} 27...
Qg5 {[%clk 0:00:43.3]} 28. Qf3 {[%clk 0:00:50.3]} 28... Rg8 {[%clk 0:00:43.5]}
29. d5 {[%clk 0:00:50.1]} 29... cxd5 {[%clk 0:00:43.6]} 30. cxd5 {[%clk
0:00:51.5]} 30... Rd7 {[%clk 0:00:43.1]} 31. Rd1 {[%clk 0:00:51.7]} 31... Rgd8
{[%clk 0:00:39.7]} 32. Ne4 {[%clk 0:00:48.3]} 32... Qe5 {[%clk 0:00:36.5]} 33.
d6 {[%clk 0:00:43.2]} 33... f5 {[%clk 0:00:34.7]} 34. Ng3 {[%clk 0:00:31.7]}
34... Rxd6 {[%clk 0:00:33.6]} 35. Rxd6 {[%clk 0:00:29.8]} 35... Qxd6 {[%clk
0:00:31.2]} 36. Qxf5 {[%clk 0:00:28.7]} 36... Qd5 {[%clk 0:00:29.8]} 37. Qf4
{[%clk 0:00:23.6]} 37... Qd1+ {[%clk 0:00:27.7]} 38. Kh2 {[%clk 0:00:23.5]}
38... Qd4 {[%clk 0:00:28]} 39. Qf7 {[%clk 0:00:22.7]} 39... Qxb2 {[%clk
0:00:25.4]} 40. a4 {[%clk 0:00:21]} 40... a6 {[%clk 0:00:23]} 41. Qe7 {[%clk
0:00:20.8]} 41... Rg8 {[%clk 0:00:19]} 42. a5 {[%clk 0:00:18.2]} 42... b5 {[%clk
0:00:19.2]} 43. Qd6 {[%clk 0:00:12.8]} 43... b4 {[%clk 0:00:18.2]} 44. Qxa6
{[%clk 0:00:12.6]} 44... b3 {[%clk 0:00:18.3]} 45. Qb6 {[%clk 0:00:13.3]} 45...
Qc3 {[%clk 0:00:18.5]} 46. a6 {[%clk 0:00:10]} 46... b2 {[%clk 0:00:19]} 47. a7
{[%clk 0:00:10.7]} 47... Qg7 {[%clk 0:00:08]} 48. h4 {[%clk 0:00:04.8]} 48...
Qe5 {[%clk 0:00:05.4]} 49. Qa6 {[%clk 0:00:02.5]} 49... Qd5 {[%clk 0:00:04.4]}
0-1

[Event "*** Titled Tuesday Blitz"]
[Site "Chess.com"]
[Date "2020.01.07"]
[Round "8"]
[White "Martins-BR"]
[Black "Teidi96"]
[Result "1-0"]
[WhiteElo "2334"]
[BlackElo "2177"]
[TimeControl "180+2"]
[EndTime "14:56:08 PST"]
[Termination "Martins-BR won by resignation"]

1. e4 {[%clk 0:03:00.3]} 1... c5 {[%clk 0:03:00.5]} 2. Nf3 {[%clk 0:03:00.6]}
2... e6 {[%clk 0:03:00.9]} 3. d4 {[%clk 0:03:01.3]} 3... cxd4 {[%clk 0:03:02.8]}
4. Nxd4 {[%clk 0:03:02.6]} 4... Nc6 {[%clk 0:03:03.4]} 5. Nc3 {[%clk 0:03:02.9]}
5... Qc7 {[%clk 0:03:04.4]} 6. Be3 {[%clk 0:02:57.4]} 6... a6 {[%clk 0:03:05.4]}
7. f4 {[%clk 0:02:53.4]} 7... Bb4 {[%clk 0:02:46.9]} 8. Qd3 {[%clk 0:02:39.2]}
8... Nf6 {[%clk 0:02:43.6]} 9. Be2 {[%clk 0:02:34.5]} 9... d5 {[%clk 0:02:37.1]}
10. e5 {[%clk 0:02:33.2]} 10... Ne4 {[%clk 0:02:36.3]} 11. O-O {[%clk
0:02:33.4]} 11... Bxc3 {[%clk 0:02:17.8]} 12. bxc3 {[%clk 0:02:33.5]} 12... Na5
{[%clk 0:02:19]} 13. f5 {[%clk 0:02:27.6]} 13... Qxc3 {[%clk 0:02:14.1]} 14.
fxe6 {[%clk 0:02:26.7]} 14... fxe6 {[%clk 0:02:12.4]} 15. Bf3 {[%clk 0:02:06.2]}
15... Qxd3 {[%clk 0:02:03.5]} 16. cxd3 {[%clk 0:02:06.5]} 16... Nc5 {[%clk
0:01:59.2]} 17. Rfd1 {[%clk 0:02:05]} 17... Bd7 {[%clk 0:01:45.7]} 18. Rac1
{[%clk 0:02:04.4]} 18... Rc8 {[%clk 0:01:38.3]} 19. Nf5 {[%clk 0:02:01.8]} 19...
exf5 {[%clk 0:01:29.9]} 20. Bxc5 {[%clk 0:02:01.9]} 20... Be6 {[%clk 0:01:23.9]}
21. d4 {[%clk 0:01:51.5]} 21... Nc4 {[%clk 0:01:22]} 22. Rxc4 {[%clk 0:01:46.5]}
22... dxc4 {[%clk 0:01:23.1]} 23. Bxb7 {[%clk 0:01:47.3]} 23... Rb8 {[%clk
0:01:14.5]} 24. Bxa6 {[%clk 0:01:34.1]} 24... Bd5 {[%clk 0:01:15.3]} 25. Rd2
{[%clk 0:01:20.4]} 25... Kd7 {[%clk 0:01:12.3]} 26. Rc2 {[%clk 0:01:19.4]} 26...
Rb1+ {[%clk 0:00:36.4]} 27. Kf2 {[%clk 0:01:19.5]} 27... Ra8 {[%clk 0:00:37.1]}
28. Bxc4 {[%clk 0:01:06.6]} 28... Bxc4 {[%clk 0:00:37.5]} 29. Rxc4 {[%clk
0:01:07.5]} 29... Rxa2+ {[%clk 0:00:39]} 30. Kg3 {[%clk 0:00:53]} 30... g5
{[%clk 0:00:33.2]} 31. h4 {[%clk 0:00:28.8]} 31... h6 {[%clk 0:00:30.6]} 32.
hxg5 {[%clk 0:00:25.5]} 32... hxg5 {[%clk 0:00:30.8]} 33. d5 {[%clk 0:00:21.6]}
33... Rb3+ {[%clk 0:00:23.8]} 34. Kh2 {[%clk 0:00:21.4]} 34... Rbb2 {[%clk
0:00:22.4]} 35. e6+ {[%clk 0:00:22.1]} 35... Ke8 {[%clk 0:00:23.7]} 36. d6
{[%clk 0:00:22.4]} 36... Rxg2+ {[%clk 0:00:23.8]} 37. Kh1 {[%clk 0:00:23.3]}
37... Rh2+ {[%clk 0:00:18.8]} 38. Kg1 {[%clk 0:00:24]} 38... Rhe2 {[%clk
0:00:18.7]} 39. d7+ {[%clk 0:00:23.8]} 39... Kd8 {[%clk 0:00:11.4]} 40. Bb6+
{[%clk 0:00:24.8]} 40... Ke7 {[%clk 0:00:12.8]} 41. d8=Q+ {[%clk 0:00:25.9]}
41... Kxe6 {[%clk 0:00:13.6]} 42. Rc6+ {[%clk 0:00:23.6]} 42... Ke5 {[%clk
0:00:14.5]} 43. Qc7+ {[%clk 0:00:20.6]} 43... Ke4 {[%clk 0:00:14.8]} 44. Re6+
{[%clk 0:00:21.7]} 44... Kf3 {[%clk 0:00:15.2]} 45. Rxe2 {[%clk 0:00:23.6]}
45... Rxe2 {[%clk 0:00:16.2]} 46. Qc6+ {[%clk 0:00:24.9]} 46... Kg4 {[%clk
0:00:15.8]} 47. Kf1 {[%clk 0:00:26.2]} 47... Re4 {[%clk 0:00:16.1]} 48. Bf2
{[%clk 0:00:26.6]} 48... Rf4 {[%clk 0:00:15.8]} 49. Qg2+ {[%clk 0:00:27.2]}
49... Kh5 {[%clk 0:00:16.8]} 50. Qh3+ {[%clk 0:00:28.2]} 50... Kg6 {[%clk
0:00:17.4]} 51. Ke2 {[%clk 0:00:29.6]} 51... Re4+ {[%clk 0:00:18.4]} 52. Kd3
{[%clk 0:00:30.7]} 52... Rf4 {[%clk 0:00:18.7]} 53. Be3 {[%clk 0:00:31.7]} 53...
Rh4 {[%clk 0:00:18.9]} 54. Qg2 {[%clk 0:00:31]} 54... Re4 {[%clk 0:00:19.7]} 55.
Qa2 {[%clk 0:00:28.5]} 55... Kh5 {[%clk 0:00:17.7]} 56. Qf7+ {[%clk 0:00:28.4]}
56... Kh4 {[%clk 0:00:17.6]} 57. Qg6 {[%clk 0:00:28.1]} 57... Rg4 {[%clk
0:00:17.8]} 58. Qxf5 {[%clk 0:00:28.8]} 58... Kh3 {[%clk 0:00:13.9]} 59. Bf2
{[%clk 0:00:27.4]} 1-0